fUSD/lending_fUSD_20240121
["ID","MTS","AMOUNT","RATE_DAILY","PERIOD"]
[312437766,1705876244904,-160.78,0.00039,7]
[312437767,1705876244918,-2385.8952942,0.00039052,12]
[312437768,1705876244927,-404.87573235,0.00039148,7]
[312437769,1705876244936,-287.76178449,0.00039148,7]
[312437770,1705876244945,-151.0122,0.00039198,8]
[312437771,1705876244955,-509.32139664,0.00039311,11]
[312437772,1705876244964,-151.81777713,0.00039358,4]
[312437773,1705876244973,-150.62584699,0.0003947,2]
[312437774,1705876244982,-800.0,0.00039486,10]
[312437775,1705876244993,-10000.0,0.0003966,3]
[312437776,1705876245003,-300.02,0.00039803,2]
[312437777,1705876245013,-3298.13430336,0.00039803,2]
[312437778,1705876245022,-500.0,0.00039809,2]
[312437779,1705876245031,-1378.706521,0.00039819,9]
[312437780,1705876245040,-500.0,0.00039836,2]
[312437781,1705876245049,-55629.30378672,0.00039865,2]
[312437782,1705876245059,-3094.01560465,0.00039868,2]
[312437783,1705876245068,-874.22906048,0.00039878,4]
[312437784,1705876245077,-82331.51539713,0.0004,10]
[312437785,1705876245128,-17668.48460287,0.0004,10]
[312437786,1705876245138,-227.74581865,0.0004,14]
[312437787,1705876245147,-6287.54443503,0.0004,4]
[312437788,1705876245156,-2678.17811978,0.0004,4]
[312437789,1705876245167,-3232.46889612,0.0004,30]
[312437790,1705876245176,-2797.57385779,0.0004,5]
[312437791,1705876245186,-54264.43228568,0.0004,4]
[312437792,1705876245195,-160.78,0.0004,7]
[312437793,1705876245204,-255.0,0.0004,12]
[312437794,1705876245214,-510.99145517,0.0004,4]
[312437795,1705876245225,-255.0,0.0004,12]
[312437796,1705876245234,-255.0,0.0004,12]
[312437797,1705876245244,-255.0,0.0004,12]
[312437798,1705876245254,-255.0,0.0004,12]
[312437799,1705876245264,-255.0,0.0004,12]
[312437800,1705876245274,-2333.33334,0.0004,2]
[312437801,1705876245283,-255.0,0.0004,12]
[312437802,1705876245293,-200.0,0.00040155,15]
[312437803,1705876245302,-151.81777713,0.00040161,7]
[312437804,1705876245311,-297.48,0.00040295,2]
[312437805,1705876245321,-656.01,0.00040349,15]
[312437806,1705876245332,-800.0,0.0004046,10]
[312437807,1705876245341,-10000.0,0.000405,5]
[312437808,1705876245353,-500.0,0.00040625,2]
[312437809,1705876245363,-846.7783042,0.0004068,2]
[312437810,1705876245374,-179.38954726,0.0004068,4]
[312437811,1705876245383,-500.0,0.00040765,2]
[312437812,1705876245392,-518.75,0.000408,4]
[312437813,1705876245402,-518.75,0.000408,4]
[312437814,1705876245413,-518.75,0.000408,4]
[312437815,1705876245423,-518.75,0.000408,4]
[312437816,1705876245433,-518.75,0.000408,4]
[312437817,1705876245444,-518.75,0.000408,4]
[312437818,1705876245453,-518.75,0.000408,4]
[312437819,1705876245464,-518.75,0.000408,4]
[312437820,1705876245473,-518.75,0.000408,4]
[312437821,1705876245484,-518.75,0.000408,4]
[312437822,1705876245493,-518.75,0.000408,4]
[312437823,1705876245503,-518.75,0.000408,4]
[312437824,1705876245512,-518.75,0.000408,4]
[312437825,1705876245522,-518.75,0.000408,4]
[312437826,1705876245533,-518.75,0.000408,4]
[312437827,1705876245543,-518.75,0.000408,4]
[312437828,1705876245552,-518.75,0.000408,4]
[312437829,1705876245561,-215.00979358,0.000408,4]
[312437830,1705876245584,-303.74020642,0.000408,4]
[312437831,1705876245594,-515.39703108,0.000408,4]
[312437832,1705876245607,-3.35296892,0.000408,4]
[312437833,1705876245617,-518.75,0.000408,4]
[312437834,1705876245628,-258.68139805,0.00040802,2]
[312437835,1705876245640,-241.31860195,0.00040802,2]
[312437836,1705876245650,-364.6138711,0.0004081,3]
[312437839,1705876246057,-273.0775097,0.0004081,3]
[312437840,1705876246073,-447.31808333,0.0004081,3]
[312437841,1705876246083,-1135.37617815,0.0004081,3]
[312437842,1705876246092,-2385.8952942,0.00040846,14]
[312437843,1705876246102,-151.81777713,0.00040965,10]
[312437844,1705876246111,-150.0,0.00040977,2]
[312437845,1705876246121,-153.72371637,0.00040995,10]
[312437846,1705876246131,-16941.76733541,0.00041,11]
[312437847,1705876246214,-878.9393226,0.00041,11]
[312437849,1705876246269,-7747.43939238,0.00041,11]
[312437851,1705876246281,-8800.20754698,0.00041,11]
[312437852,1705876246292,-13047.48360405,0.00041,11]
[312437853,1705876246308,-13807.33890991,0.00041,11]
[312437854,1705876247252,-552.73904551,0.00041,11]
[312437855,1705876247276,-1340.85450156,0.00041,11]
[312437856,1705876247287,-668.75659888,0.00041,11]
[312437857,1705876247301,-289.53427893,0.00041,11]
[312437858,1705876247371,-285.53746863,0.00041,11]
[312437859,1705876247384,-6677.47734996,0.00041,11]
[312437860,1705876247398,-28961.9246452,0.00041,11]
[312437861,1705876247410,-3441.72254948,0.00041,4]
[312437862,1705876247419,-4000.02481969,0.00041,2]
[312437863,1705876247429,-10000.0,0.00041048,4]
[312437864,1705876247438,-150.0,0.00041077,2]
[312437865,1705876247447,-224.37017007,0.0004109,4]
[312437866,1705876247457,-279.39893279,0.00041091,4]
[312437867,1705876247466,-422.82071749,0.00041091,2]
[312437868,1705876247475,-872.96725856,0.00041091,4]
[312437869,1705876247485,-1703.15103053,0.00041091,4]
[312437870,1705876247494,-155.0,0.00041091,4]
[312437871,1705876247503,-614.9796451,0.00041091,4]
[312437872,1705876247512,-17361.64027746,0.00041092,4]
[312437873,1705876247521,-150.0,0.00041092,3]
[312437874,1705876247531,-150.0,0.00041092,3]
[312437875,1705876247541,-403.98053138,0.00041093,4]
[312437876,1705876247551,-151.02713628,0.00041093,4]
[312437877,1705876247592,-662.57929744,0.00041093,4]
[312437878,1705876247601,-1135.93414869,0.00041093,20]
[312437879,1705876247615,-212.04813817,0.00041093,20]
[312437880,1705876247624,-258.24097453,0.00041093,4]
[312437881,1705876247633,-37879.18167828,0.00041093,4]
[312437882,1705876247642,-607.66595809,0.00041093,4]
[312437883,1705876247651,-150.0,0.00041094,3]
[312437884,1705876247661,-500.0,0.00041095,31]
[312437885,1705876247669,-500.0,0.00041095,31]
[312437886,1705876247679,-500.0,0.00041095,31]
[312437887,1705876247687,-500.0,0.00041095,31]
[312437888,1705876247697,-500.0,0.00041095,31]
[312437889,1705876247706,-500.0,0.00041095,31]
[312437890,1705876247715,-506.72980519,0.00041095,31]
[312437891,1705876247724,-500.0,0.00041095,31]
[312437892,1705876247733,-500.0,0.00041095,30]
[312437893,1705876247743,-500.0,0.00041095,31]
[312437894,1705876247752,-500.0,0.00041095,31]
[312437895,1705876247761,-500.0,0.00041095,31]
[312437896,1705876247770,-512.28687501,0.00041095,31]
[312437897,1705876247780,-500.0,0.00041095,31]
[312437898,1705876247789,-500.0,0.00041095,31]
[312437899,1705876247798,-500.0,0.00041095,31]
[312437900,1705876247808,-500.0,0.00041095,31]
[312437901,1705876247817,-500.0,0.00041095,31]
[312437902,1705876247827,-500.0,0.00041095,31]
[312437903,1705876247836,-502.30487466,0.00041095,31]
[312437904,1705876247845,-500.0,0.00041095,31]
[312437905,1705876247854,-500.0,0.00041095,31]
[312437906,1705876247863,-500.0,0.00041095,31]
[312437907,1705876247873,-327.24908451,0.00041095,31]
[312437908,1705876247883,-500.0,0.00041095,31]
[312437909,1705876247893,-500.0,0.00041095,31]
[312437910,1705876247903,-500.0,0.00041095,31]
[312437911,1705876247918,-229.21267011,0.00041095,31]
[312437912,1705876247927,-500.0,0.00041095,31]
[312437913,1705876248072,-500.0,0.00041095,50]
[312437914,1705876248082,-500.0,0.00041095,31]
[312437915,1705876248091,-567.22468271,0.00041095,31]
[312437916,1705876248100,-500.0,0.00041095,31]
[312437917,1705876248110,-500.0,0.00041095,31]
[312437918,1705876248119,-500.0,0.00041095,31]
[312437919,1705876248128,-500.0,0.00041095,31]
[312437920,1705876248138,-271.15672939,0.00041095,31]
[312437921,1705876248149,-500.0,0.00041095,31]
[312437922,1705876248158,-501.66018695,0.00041095,31]
[312437923,1705876248167,-500.0,0.00041095,31]
[312437924,1705876248177,-500.0,0.00041095,31]
[312437925,1705876248186,-511.12027277,0.00041095,31]
[312437926,1705876248195,-500.0,0.00041095,31]
[312437927,1705876248205,-500.0,0.00041095,31]
[312437928,1705876248215,-500.0,0.00041095,31]
[312437929,1705876248225,-500.0,0.00041095,31]
[312437930,1705876248236,-498.07080522,0.00041095,31]
[312437931,1705876248253,-444.53919478,0.00041095,31]
[312437932,1705876248263,-500.0,0.00041095,60]
[312437933,1705876248274,-500.0,0.00041095,31]
[312437934,1705876248284,-500.0,0.00041095,7]
[312437935,1705876248294,-63.38030617,0.00041095,31]
[312437936,1705876248314,-482.72274537,0.00041095,31]
[312437937,1705876248324,-500.0,0.00041095,31]
[312437938,1705876248333,-500.0,0.00041095,31]
[312437939,1705876248343,-188.71725463,0.00041095,31]
[312437940,1705876248355,-311.28274537,0.00041095,31]
[312437941,1705876248364,-500.0,0.00041095,31]
[312437942,1705876248374,-510.03888508,0.00041095,31]
[312437943,1705876248384,-500.0,0.00041095,31]
[312437944,1705876248394,-500.0,0.00041095,31]
[312437945,1705876248404,-500.0,0.00041095,31]
[312437946,1705876248415,-500.0,0.00041095,31]
[312437947,1705876248424,-342.900782,0.00041095,31]
[312437948,1705876252073,1104.86730331,0.0002,2]
[312437949,1705876375078,-150.0,0.00040234,30]
[312437950,1705876375105,-250.0,0.00040484,111]
[312437951,1705876375131,-684.48518302,0.00040484,30]
[312437952,1705876375156,-1264.80983694,0.00041093,30]
[312437953,1705876375182,-2062.72586743,0.00041094,30]
[312437954,1705876375207,-854.22790394,0.00041095,30]
[312437955,1705876375232,-1237.42927869,0.00041095,30]
[312437956,1705876375257,-500.0,0.00041095,31]
[312437957,1705876375282,-500.0,0.00041095,31]
[312437958,1705876375306,-500.0,0.00041095,31]
[312437959,1705876375331,-500.0,0.00041095,31]
[312437960,1705876375356,-500.0,0.00041095,31]
[312437961,1705876375380,-500.0,0.00041095,31]
[312437962,1705876375404,-500.0,0.00041095,31]
[312437963,1705876375428,-500.0,0.00041095,31]
[312437964,1705876375452,-500.0,0.00041095,31]
[312437965,1705876375478,-500.0,0.00041095,31]
[312437966,1705876375506,-1079.83,0.00041095,30]
[312437967,1705876375537,-500.0,0.00041095,31]
[312437968,1705876375563,-500.0,0.00041095,31]
[312437969,1705876375586,-500.0,0.00041095,31]
[312437970,1705876375611,-500.0,0.00041095,31]
[312437971,1705876375636,-500.0,0.00041095,31]
[312437972,1705876375660,-500.0,0.00041095,31]
[312437973,1705876375685,-500.0,0.00041095,31]
[312437974,1705876375712,-500.0,0.00041095,31]
[312437975,1705876376110,-500.0,0.00041095,31]
[312437976,1705876376135,-500.0,0.00041095,31]
[312437977,1705876376159,-500.0,0.00041095,31]
[312437978,1705876376182,-500.0,0.00041095,31]
[312437979,1705876376208,-500.0,0.00041095,31]
[312437980,1705876376233,-500.0,0.00041095,31]
[312437981,1705876376258,-500.0,0.00041095,31]
[312437982,1705876376284,-500.0,0.00041095,31]
[312437983,1705876376309,-500.0,0.00041095,31]
[312437984,1705876376333,-1000.0,0.00041095,31]
[312437985,1705876376358,-500.0,0.00041095,31]
[312437986,1705876376385,-500.0,0.00041095,31]
[312437987,1705876376410,-500.0,0.00041095,31]
[312437988,1705876376435,-500.0,0.00041095,31]
[312437989,1705876376460,-500.0,0.00041095,31]
[312437990,1705876376483,-500.0,0.00041095,31]
[312437991,1705876376506,-500.0,0.00041095,31]
[312437992,1705876376529,-500.0,0.00041095,31]
[312437993,1705876376552,-500.0,0.00041095,31]
[312437994,1705876376575,-500.0,0.00041095,31]
[312437995,1705876376597,-515.08423491,0.00041095,31]
[312437996,1705876376619,-500.0,0.00041095,31]
[312437997,1705876376642,-573.41,0.00041095,31]
[312437998,1705876376664,-500.0,0.00041095,31]
[312437999,1705876376686,-500.0,0.00041095,31]
[312438000,1705876376708,-500.0,0.00041095,31]
[312438001,1705876376732,-500.0,0.00041095,31]
[312438002,1705876376754,-500.0,0.00041095,31]
[312438003,1705876376776,-500.0,0.00041095,31]
[312438004,1705876376800,-500.0,0.00041095,31]
[312438005,1705876376824,-500.0,0.00041095,31]
[312438006,1705876376847,-500.0,0.00041095,31]
[312438007,1705876376871,-500.0,0.00041095,31]
[312438008,1705876376892,-500.0,0.00041095,31]
[312438009,1705876376917,-500.0,0.00041095,31]
[312438010,1705876376940,-500.0,0.00041095,31]
[312438011,1705876376966,-500.0,0.00041095,31]
[312438012,1705876376990,-500.0,0.00041095,31]
[312438013,1705876377013,-500.0,0.00041095,31]
[312438014,1705876377038,-500.0,0.00041095,31]
[312438015,1705876377061,-500.0,0.00041095,31]
[312438016,1705876377083,-500.0,0.00041095,31]
[312438017,1705876377107,-500.0,0.00041095,31]
[312438018,1705876377130,-500.0,0.00041095,31]
[312438019,1705876377152,-500.0,0.00041095,31]
[312438020,1705876377173,-500.0,0.00041095,31]
[312438021,1705876377196,-500.0,0.00041095,31]
[312438022,1705876377220,-500.0,0.00041095,31]
[312438023,1705876377243,-500.0,0.00041095,31]
[312438024,1705876377265,-500.0,0.00041095,31]
[312438025,1705876377287,-500.0,0.00041095,31]
[312438026,1705876377310,-500.0,0.00041095,31]
[312438027,1705876377333,-500.0,0.00041095,31]
[312438028,1705876377355,-500.0,0.00041095,31]
[312438029,1705876377377,-500.0,0.00041095,31]
[312438030,1705876377400,-500.0,0.00041095,31]
[312438031,1705876377424,-500.0,0.00041095,31]
[312438032,1705876377446,-500.0,0.00041095,31]
[312438033,1705876377469,-500.0,0.00041095,31]
[312438034,1705876377491,-542.3221312,0.00041095,31]
[312438035,1705876377514,-500.0,0.00041095,31]
[312438036,1705876377536,-500.0,0.00041095,31]
[312438037,1705876377563,-500.0,0.00041095,31]
[312438038,1705876377586,-500.0,0.00041095,31]
[312438039,1705876377616,-500.0,0.00041095,31]
[312438040,1705876377643,-500.0,0.00041095,31]
[312438041,1705876377670,-568.04,0.00041095,31]
[312438042,1705876377697,-500.0,0.00041095,31]
[312438043,1705876377722,-500.0,0.00041095,31]
[312438044,1705876377748,-500.0,0.00041095,31]
[312438045,1705876377775,-500.0,0.00041095,31]
[312438046,1705876377803,-500.0,0.00041095,31]
[312438047,1705876377831,-500.0,0.00041095,31]
[312438048,1705876377859,-500.0,0.00041095,31]
[312438049,1705876377884,-550.0,0.00041095,31]
[312438050,1705876377910,-500.0,0.00041095,31]
[312438051,1705876377933,-500.0,0.00041095,31]
[312438052,1705876377959,-500.0,0.00041095,31]
[312438053,1705876377983,-500.0,0.00041095,31]
[312438054,1705876378008,-500.0,0.00041095,31]
[312438055,1705876378036,-500.0,0.00041095,31]
[312438056,1705876378061,-474.70744744,0.00041095,31]
[312438057,1705876378085,-500.0,0.00041095,31]
[312438058,1705876378108,-500.0,0.00041095,31]
[312438059,1705876378131,-500.0,0.00041095,31]
[312438060,1705876378153,-500.0,0.00041095,31]
[312438061,1705876378181,-500.0,0.00041095,31]
[312438062,1705876378205,-500.0,0.00041095,31]
[312438063,1705876378229,-500.0,0.00041095,31]
[312438064,1705876378253,-500.0,0.00041095,31]
[312438065,1705876378276,-500.0,0.00041095,31]
[312438066,1705876378299,-500.0,0.00041095,31]
[312438067,1705876378323,-500.0,0.00041095,31]
[312438068,1705876378346,-500.0,0.00041095,31]
[312438069,1705876378371,-500.0,0.00041095,31]
[312438070,1705876378393,-523.93,0.00041095,31]
[312438071,1705876378416,-223.98515755,0.00041095,31]
[312438072,1705876378441,-500.0,0.00041095,31]
[312438073,1705876378469,-500.0,0.00041095,31]
[312438074,1705876378494,-500.0,0.00041095,31]
[312438075,1705876378516,-500.0,0.00041095,31]
[312438076,1705876378539,-641.77616272,0.00041095,31]
[312438077,1705876378860,-513.64565617,0.00041095,31]
[312438078,1705876378890,-500.0,0.00041095,31]
[312438079,1705876378918,-500.0,0.00041095,31]
[312438080,1705876378943,-500.0,0.00041095,31]
[312438081,1705876378972,-500.0,0.00041095,31]
[312438082,1705876378998,-500.0,0.00041095,31]
[312438083,1705876379023,-500.0,0.00041095,31]
[312438084,1705876379052,-500.0,0.00041095,31]
[312438085,1705876379078,-500.0,0.00041095,31]
[312438086,1705876379104,-500.0,0.00041095,31]
[312438087,1705876379129,-500.0,0.00041095,31]
[312438088,1705876379154,-500.0,0.00041095,31]
[312438089,1705876379178,-500.0,0.00041095,31]
[312438090,1705876379202,-500.0,0.00041095,31]
[312438091,1705876379227,-500.0,0.00041095,31]
[312438092,1705876379250,-500.0,0.00041095,31]
[312438093,1705876379274,-500.0,0.00041095,31]
[312438094,1705876379297,-500.0,0.00041095,31]
[312438095,1705876379322,-500.0,0.00041095,31]
[312438096,1705876379351,-500.0,0.00041095,31]
[312438097,1705876379375,-500.0,0.00041095,31]
[312438098,1705876379400,-500.0,0.00041095,31]
[312438099,1705876379424,-500.0,0.00041095,31]
[312438100,1705876379448,-500.0,0.00041095,31]
[312438101,1705876379472,-500.0,0.00041095,31]
[312438102,1705876379496,-500.0,0.00041095,31]
[312438103,1705876379519,-500.0,0.00041095,31]
[312438104,1705876379544,-500.0,0.00041095,31]
[312438105,1705876379569,-500.0,0.00041095,31]
[312438106,1705876379594,-500.0,0.00041095,31]
[312438107,1705876379619,-500.0,0.00041095,31]
[312438108,1705876379647,-500.0,0.00041095,31]
[312438109,1705876379673,-500.0,0.00041095,31]
[312438110,1705876379701,-500.0,0.00041095,31]
[312438111,1705876379727,-500.0,0.00041095,31]
[312438112,1705876379753,-500.0,0.00041095,31]
[312438113,1705876379777,-500.0,0.00041095,31]
[312438114,1705876379802,-500.0,0.00041095,31]
[312438115,1705876379825,-185.70046812,0.00041095,31]
[312438116,1705876379851,-500.0,0.00041095,31]
[312438117,1705876379878,-500.0,0.00041095,31]
[312438118,1705876379911,-500.0,0.00041095,31]
[312438119,1705876379938,-500.0,0.00041095,31]
[312438120,1705876379963,-500.0,0.00041095,31]
[312438121,1705876379988,-500.0,0.00041095,31]
[312438122,1705876380018,-516.25,0.00041095,31]
[312438123,1705876380048,-500.0,0.00041095,31]
[312438124,1705876380073,-500.0,0.00041095,31]
[312438125,1705876380099,-500.0,0.00041095,31]
[312438126,1705876380125,-259.37445261,0.00041095,31]
[312438127,1705876380155,-500.0,0.00041095,31]
[312438128,1705876380180,-500.0,0.00041095,31]
[312438129,1705876380205,-500.0,0.00041095,31]
[312438130,1705876380230,-500.0,0.00041095,31]
[312438131,1705876380257,-500.0,0.00041095,31]
[312438132,1705876380284,-500.0,0.00041095,31]
[312438133,1705876380310,-500.0,0.00041095,31]
[312438134,1705876380335,-579.47,0.00041095,31]
[312438135,1705876380360,-500.0,0.00041095,31]
[312438136,1705876380385,-500.0,0.00041095,31]
[312438137,1705876380410,-500.0,0.00041095,31]
[312438138,1705876380435,-500.0,0.00041095,31]
[312438139,1705876380460,-500.0,0.00041095,31]
[312438140,1705876380485,-500.0,0.00041095,31]
[312438141,1705876380509,-500.0,0.00041095,31]
[312438142,1705876380534,-500.0,0.00041095,31]
[312438143,1705876380558,-500.0,0.00041095,31]
[312438144,1705876380582,-500.0,0.00041095,31]
[312438145,1705876380607,-500.0,0.00041095,31]
[312438146,1705876380632,-500.0,0.00041095,31]
[312438147,1705876380656,-598.65187319,0.00041095,31]
[312438148,1705876380680,-500.0,0.00041095,31]
[312438149,1705876380705,-500.0,0.00041095,31]
[312438150,1705876380730,-500.0,0.00041095,31]
[312438151,1705876380754,-500.0,0.00041095,31]
[312438152,1705876380778,-500.0,0.00041095,31]
[312438153,1705876380802,-500.0,0.00041095,31]
[312438154,1705876380830,-500.0,0.00041095,31]
[312438155,1705876380854,-500.0,0.00041095,31]
[312438156,1705876380878,-500.0,0.00041095,31]
[312438157,1705876380904,-500.0,0.00041095,31]
[312438158,1705876380929,-500.0,0.00041095,31]
[312438159,1705876380957,-500.0,0.00041095,31]
[312438160,1705876380981,-500.0,0.00041095,31]
[312438161,1705876381006,-500.0,0.00041095,31]
[312438162,1705876381037,-500.0,0.00041095,31]
[312438163,1705876381060,-500.0,0.00041095,31]
[312438164,1705876381085,-500.0,0.00041095,31]
[312438165,1705876381110,-500.0,0.00041095,31]
[312438166,1705876381134,-500.0,0.00041095,31]
[312438167,1705876381158,-500.0,0.00041095,31]
[312438168,1705876381183,-623.35985259,0.00041095,31]
[312438169,1705876381207,-500.0,0.00041095,31]
[312438170,1705876381230,-500.0,0.00041095,31]
[312438171,1705876381255,-500.0,0.00041095,31]
[312438172,1705876381279,-500.0,0.00041095,31]
[312438173,1705876381302,-500.0,0.00041095,31]
[312438174,1705876381325,-298.33885071,0.00041095,31]
[312438175,1705876381349,-500.0,0.00041095,31]
[312438176,1705876381373,-500.0,0.00041095,31]
[312438177,1705876381396,-500.0,0.00041095,31]
[312438178,1705876381420,-500.0,0.00041095,31]
[312438179,1705876381444,-500.0,0.00041095,31]
[312438180,1705876381467,-424.47165249,0.00041095,31]
[312438181,1705876381491,-503.80109686,0.00041095,31]
[312438182,1705876381789,-500.0,0.00041095,31]
[312438183,1705876381815,-500.0,0.00041095,31]
[312438184,1705876381840,-500.0,0.00041095,31]
[312438185,1705876381863,-500.0,0.00041095,31]
[312438186,1705876381886,-234.10944026,0.00041095,31]
[312438187,1705876381909,-500.0,0.00041095,31]
[312438188,1705876381931,-500.0,0.00041095,31]
[312438189,1705876381958,-500.0,0.00041095,31]
[312438190,1705876381980,-500.0,0.00041095,31]
[312438191,1705876382005,-500.0,0.00041095,31]
[312438192,1705876382028,-500.0,0.00041095,31]
[312438193,1705876382052,-500.0,0.00041095,31]
[312438194,1705876382074,-500.0,0.00041095,31]
[312438195,1705876382096,-500.0,0.00041095,31]
[312438196,1705876382123,-500.0,0.00041095,31]
[312438197,1705876382146,-500.0,0.00041095,31]
[312438198,1705876382168,-500.0,0.00041095,31]
[312438199,1705876382192,-500.0,0.00041095,31]
[312438200,1705876382216,-500.0,0.00041095,31]
[312438201,1705876382239,-500.0,0.00041095,31]
[312438202,1705876382262,-182.9064655,0.00041095,31]
[312438203,1705876382286,-500.0,0.00041095,31]
[312438204,1705876382309,-500.0,0.00041095,31]
[312438205,1705876382331,-544.47454863,0.00041095,31]
[312438206,1705876382354,-500.0,0.00041095,31]
[312438207,1705876382376,-500.0,0.00041095,31]
[312438208,1705876382400,-500.0,0.00041095,31]
[312438209,1705876382422,-505.95404929,0.00041095,31]
[312438210,1705876382445,-500.0,0.00041095,31]
[312438211,1705876382469,-500.0,0.00041095,31]
[312438212,1705876382491,-500.0,0.00041095,31]
[312438213,1705876382514,-500.0,0.00041095,31]
[312438214,1705876382536,-500.0,0.00041095,31]
[312438215,1705876382561,-500.0,0.00041095,31]
[312438216,1705876382584,-500.0,0.00041095,31]
[312438217,1705876382609,-500.0,0.00041095,31]
[312438218,1705876382633,-500.0,0.00041095,31]
[312438219,1705876382656,-500.0,0.00041095,31]
[312438220,1705876382679,-500.0,0.00041095,31]
[312438221,1705876382702,-500.0,0.00041095,31]
[312438222,1705876382725,-500.0,0.00041095,31]
[312438223,1705876382747,-509.28,0.00041095,31]
[312438224,1705876382769,-500.0,0.00041095,31]
[312438225,1705876382793,-500.0,0.00041095,31]
[312438226,1705876382815,-500.0,0.00041095,31]
[312438227,1705876382839,-500.0,0.00041095,31]
[312438228,1705876382861,-500.0,0.00041095,31]
[312438229,1705876382888,-500.0,0.00041095,31]
[312438230,1705876382910,-500.0,0.00041095,31]
[312438231,1705876382933,-500.0,0.00041095,31]
[312438232,1705876382958,-555.9532703,0.00041095,31]
[312438233,1705876382981,-501.82889378,0.00041095,31]
[312438234,1705876383005,-500.0,0.00041095,31]
[312438235,1705876383028,-500.0,0.00041095,31]
[312438236,1705876383056,-500.0,0.00041095,31]
[312438237,1705876383079,-186.25759092,0.00041095,31]
[312438238,1705876383101,-500.0,0.00041095,31]
[312438239,1705876383124,-500.0,0.00041095,31]
[312438240,1705876383146,-500.0,0.00041095,31]
[312438241,1705876383168,-500.0,0.00041095,31]
[312438242,1705876383190,-500.0,0.00041095,31]
[312438243,1705876383212,-500.0,0.00041095,31]
[312438244,1705876383235,-503.204569,0.00041095,31]
[312438245,1705876383260,-500.0,0.00041095,31]
[312438246,1705876383283,-500.0,0.00041095,31]
[312438247,1705876383306,-500.0,0.00041095,31]
[312438248,1705876383329,-500.0,0.00041095,31]
[312438249,1705876383353,-500.0,0.00041095,31]
[312438250,1705876383376,-500.0,0.00041095,31]
[312438251,1705876383401,-500.0,0.00041095,31]
[312438252,1705876383425,-500.0,0.00041095,31]
[312438253,1705876383447,-500.0,0.00041095,31]
[312438254,1705876383474,-500.0,0.00041095,31]
[312438255,1705876383496,-500.0,0.00041095,31]
[312438256,1705876383519,-500.0,0.00041095,31]
[312438257,1705876383544,-500.0,0.00041095,31]
[312438258,1705876383568,-500.0,0.00041095,31]
[312438259,1705876383592,-500.0,0.00041095,31]
[312438260,1705876383617,-500.0,0.00041095,31]
[312438261,1705876383641,-500.0,0.00041095,31]
[312438262,1705876383664,-508.85,0.00041095,31]
[312438263,1705876383689,-500.0,0.00041095,31]
[312438264,1705876383712,-500.0,0.00041095,31]
[312438265,1705876383735,-500.0,0.00041095,31]
[312438266,1705876383759,-379.45489863,0.00041095,31]
[312438267,1705876383784,-500.0,0.00041095,31]
[312438268,1705876383808,-500.0,0.00041095,31]
[312438269,1705876383832,-500.0,0.00041095,31]